bitfinex-derivatives/quotes_BNBF0:USTF0_20250115
["timestamp","ask_amount","ask_price","bid_price","bid_amount"]
[1736931729357,0.26344999,698.63,696.56,0.2871253]
[1736931729559,0.26344999,698.62,696.56,0.2871253]
[1736931729759,0.26344999,698.61,696.56,0.2871253]
[1736931729964,0.26344999,698.6,696.56,0.2871253]
[1736931730163,0.26344999,698.59,696.56,0.2871253]
[1736931730364,0.26344999,698.58,696.56,0.2871253]
[1736931730566,0.26344999,698.57,696.56,0.2871253]
[1736931730758,1.06785394,698.71,696.56,0.2871253]
[1736931730759,0.26344999,698.56,696.56,0.2871253]
[1736931730957,0.26344999,698.55,696.56,0.2871253]
[1736931731164,0.26344999,698.54,696.56,0.2871253]
[1736931731360,0.26344999,698.53,696.56,0.2871253]
[1736931731566,0.26344999,698.52,696.56,0.2871253]
[1736931731761,0.26344999,698.51,696.56,0.2871253]
[1736931731962,0.26344999,698.5,696.56,0.2871253]
[1736931732264,0.26344999,698.49,696.56,0.2871253]
[1736931732460,0.26344999,698.48,696.56,0.2871253]
[1736931732763,0.26344999,698.47,696.56,0.2871253]
[1736931732969,0.28634834,698.45,696.56,0.2871253]
[1736931735666,0.26349087,698.44,696.56,0.2871253]
[1736931736171,0.28636064,698.42,696.56,0.2871253]
[1736931736367,0.26349087,698.41,696.56,0.2871253]
[1736931736566,0.26348314,698.4,696.56,0.2871253]
[1736931736769,0.26348314,698.39,696.56,0.2871253]
[1736931736964,0.28638114,698.37,696.56,0.2871253]
[1736931737271,0.26348314,698.36,696.56,0.2871253]
[1736931737570,0.28639344,698.34,696.56,0.2871253]
[1736931737771,0.26348314,698.33,696.56,0.2871253]
[1736931737972,0.28640575,698.31,696.56,0.2871253]
[1736931738174,0.26348314,698.3,696.56,0.2871253]
[1736931738373,0.28641805,698.28,696.56,0.2871253]
[1736931738573,0.26348314,698.27,696.56,0.2871253]
[1736931738765,0.28643036,698.25,696.56,0.2871253]
[1736931738970,0.26348314,698.24,696.56,0.2871253]
[1736931739275,0.26349529,698.23,696.56,0.2871253]
[1736931739465,0.881,698.84,696.56,0.2871253]
[1736931739466,0.54993795,698.22,696.56,0.2871253]
[1736931739670,0.28645087,698.2,696.56,0.2871253]
[1736931739873,0.26349529,698.19,696.56,0.2871253]
[1736931740173,0.28646318,698.17,696.56,0.2871253]
[1736931740371,0.26349529,698.16,696.56,0.2871253]
[1736931740572,0.28647549,698.14,696.56,0.2871253]
[1736931740872,0.26349529,698.13,696.56,0.2871253]
[1736931741472,0.28648369,698.12,696.56,0.2871253]
[1736931741969,0.26353232,698.11,696.56,0.2871253]
[1736931742571,0.26353232,698.1,696.56,0.2871253]
[1736931742771,0.26353232,698.09,696.56,0.2871253]
[1736931742976,0.26353232,698.08,696.56,0.2871253]
[1736931743170,0.26353232,698.07,696.56,0.2871253]
[1736931743375,0.26353232,698.06,696.56,0.2871253]
[1736931743674,0.26353232,698.05,696.56,0.2871253]
[1736931743876,0.26353232,698.04,696.56,0.2871253]
[1736931744074,0.26353232,698.03,696.56,0.2871253]
[1736931744278,0.26353232,698.02,696.56,0.2871253]
[1736931744571,0.28648369,698.12,696.56,0.2871253]
[1736931744772,0.28652884,698.01,696.56,0.2871253]
[1736931744977,0.26355963,698.0,696.56,0.2871253]
[1736931745176,0.881,698.84,696.56,0.2871253]
[1736931745177,0.55009668,697.99,696.56,0.2871253]
[1736931745379,0.55010079,697.98,696.56,0.2871253]
[1736931745569,0.55010489,697.97,696.56,0.2871253]
[1736931745769,0.550109,697.96,696.56,0.2871253]
[1736931745971,0.5501131,697.95,696.56,0.2871253]
[1736931746173,0.55011721,697.94,696.56,0.2871253]
[1736931746370,0.55012131,697.93,696.56,0.2871253]
[1736931746579,0.55012542,697.92,696.56,0.2871253]
[1736931746877,0.55012953,697.91,696.56,0.2871253]
[1736931747073,0.55013363,697.9,696.56,0.2871253]
[1736931747278,0.881,698.84,696.56,0.2871253]
[1736931747279,0.5501388,697.89,696.56,0.2871253]
[1736931747473,0.55014291,697.88,696.56,0.2871253]
[1736931747677,0.55014701,697.87,696.56,0.2871253]
[1736931747979,0.55015112,697.86,696.56,0.2871253]
[1736931748172,0.55015523,697.85,696.56,0.2871253]
[1736931748372,0.881,698.84,696.56,0.2871253]
[1736931748373,0.55015933,697.84,696.56,0.2871253]
[1736931748573,0.26356069,697.83,696.56,0.2871253]
[1736931750078,0.26354946,697.82,696.56,0.2871253]
[1736931750579,0.26354946,697.81,696.56,0.2871253]
[1736931750776,0.943,697.81,696.56,0.2871253]
[1736931750975,0.26354959,697.8,696.56,0.2871253]
[1736931752778,0.943,697.81,696.56,0.2871253]
[1736931752980,0.26354974,697.8,696.56,0.2871253]
[1736931753775,0.26354974,697.79,696.56,0.2871253]
[1736931753976,0.26354974,697.78,696.56,0.2871253]
[1736931754177,0.26354974,697.77,696.56,0.2871253]
[1736931754382,0.26354974,697.76,696.56,0.2871253]
[1736931754580,0.26355364,697.75,696.56,0.2871253]
[1736931754878,0.26355364,697.74,696.56,0.2871253]
[1736931755080,0.26355364,697.73,696.56,0.2871253]
[1736931755276,0.26355364,697.72,696.56,0.2871253]
[1736931755477,0.26355364,697.8,696.56,0.2871253]
[1736931755681,0.26355305,697.79,696.56,0.2871253]
[1736931755882,0.26355305,697.78,696.56,0.2871253]
[1736931756081,0.26355305,697.77,696.56,0.2871253]
[1736931756281,0.26355305,697.76,696.56,0.2871253]
[1736931756583,0.26355305,697.75,696.56,0.2871253]
[1736931756783,0.26355305,697.74,696.56,0.2871253]
[1736931756984,0.26355305,697.73,696.56,0.2871253]
[1736931757181,0.26355305,697.72,696.56,0.2871253]
[1736931757383,0.943,697.81,696.56,0.2871253]
[1736931757384,0.26355305,697.71,696.56,0.2871253]
[1736931757682,0.26355305,697.7,696.56,0.2871253]
[1736931757882,0.26355305,697.69,696.56,0.2871253]
[1736931758078,0.26355305,697.68,696.56,0.2871253]
[1736931758279,0.26355305,697.67,696.56,0.2871253]
[1736931758481,0.26355305,697.66,696.56,0.2871253]
[1736931758882,0.26355305,697.8,696.56,0.2871253]
[1736931759076,0.943,697.81,696.56,0.2871253]
[1736931759283,0.26360292,697.8,696.56,0.2871253]
[1736931759985,0.28661918,697.79,696.56,0.2871253]
[1736931760284,0.26360292,697.78,696.56,0.2871253]
[1736931760583,0.28662739,697.77,696.56,0.2871253]
[1736931760783,0.26360292,697.76,696.56,0.2871253]
[1736931760984,0.28663561,697.75,696.56,0.2871253]
[1736931761184,1.04305546,697.58,696.56,0.2871253]
[1736931762182,0.26360896,697.57,696.56,0.2871253]
[1736931762386,1.04305546,697.55,696.56,0.2871253]
[1736931763385,1.04305546,697.48,696.56,0.2871253]
[1736931765684,1.04305546,697.45,696.56,0.2871253]
[1736931768891,1.04305546,697.42,696.56,0.2871253]
[1736931769992,1.04305546,697.35,696.56,0.2871253]
[1736931771191,1.04305546,697.32,696.56,0.2871253]
[1736931772085,0.83755203,697.74,696.56,0.2871253]
[1736931772086,1.04305546,697.3,696.56,0.2871253]
[1736931773093,1.04305546,697.28,696.56,0.2871253]
[1736931774094,1.04305546,697.25,696.56,0.2871253]
[1736931774493,1.04305546,697.25,695.52,1.26072119]
[1736931774694,1.04305546,697.25,695.54,0.28754636]
[1736931774994,1.04305546,697.43,695.54,0.28754636]
[1736931775992,1.04305546,697.44,695.54,0.28754636]
[1736931776896,1.04305546,697.43,695.54,0.28754636]
[1736931777796,1.04305546,697.29,695.54,0.28754636]
[1736931777990,1.04305546,697.29,695.55,1.49851978]
[1736931778194,1.04305546,697.29,695.57,0.28753396]
[1736931778697,1.04305546,697.41,695.57,0.28753396]
[1736931779190,1.04305546,697.45,695.57,0.28753396]
[1736931780497,1.04305546,697.49,695.57,0.28753396]
[1736931780896,0.26363863,697.48,695.57,0.28753396]
[1736931781394,1.04305546,697.47,695.6,1.26072119]
[1736931781594,0.26363863,697.46,695.62,0.28751329]
[1736931782295,1.014,697.46,695.62,0.28751329]
[1736931782494,1.014,697.46,695.74,1.26072119]
[1736931782697,1.014,697.46,695.76,0.28745544]
[1736931785795,1.014,697.46,695.78,1.07227985]
[1736931786197,1.014,697.46,695.8,0.28743891]
[1736931789702,1.014,697.46,695.84,1.07227985]
[1736931789902,1.014,697.46,695.86,0.28741413]
[1736931790701,1.014,697.46,695.86,1.35969398]
[1736931791799,1.014,697.46,695.99,1.07227985]
[1736931792503,1.014,697.46,696.08,1.07227985]
[1736931793304,1.014,697.46,696.1,0.28731504]
[1736931793603,1.014,697.46,696.12,1.07227985]
[1736931794502,1.014,697.46,696.1,0.28731504]
[1736931801408,1.014,697.46,696.17,1.07227985]
[1736931801614,1.014,697.46,696.18,0.28728202]
[1736931803715,1.014,697.46,696.19,1.6655465]
[1736931803915,1.014,697.46,696.2,0.28727377]
[1736931804112,1.014,697.46,696.21,2.52626357]
[1736931804314,1.014,697.46,696.22,2.81352908]
[1736931804512,1.014,697.46,696.23,1.95280789]
[1736931805112,1.014,697.46,696.39,1.07227985]
[1736931806220,1.014,697.46,696.26,1.07227985]
[1736931806420,1.014,697.46,696.27,0.28724489]
[1736931807218,1.014,697.46,696.27,1.35952474]
[1736931808219,1.014,697.46,696.29,1.07227985]
[1736931809318,1.014,697.46,696.27,0.28724489]
[1736931817525,1.014,697.46,696.29,1.07227985]
[1736931818229,1.014,697.46,696.3,0.28723251]
[1736931834637,1.014,697.46,696.3,1.35951236]
[1736931835540,1.014,697.46,696.31,1.07227985]
[1736931836141,1.014,697.46,696.32,0.28722426]
[1736931836644,1.014,697.46,696.32,1.35950411]
[1736931837746,1.014,697.46,696.34,1.07227985]
[1736931837941,1.014,697.46,696.35,0.28721189]
[1736931838944,1.014,697.46,696.35,1.35949174]
[1736931839944,1.014,697.46,696.35,0.28721189]
[1736931849052,1.014,697.46,696.42,1.07227985]
[1736931850060,1.014,697.46,696.39,1.07227985]
[1736931851061,1.014,697.46,696.4,0.28719126]
[1736931854564,1.014,697.46,696.4,1.35947111]
[1736931855464,1.014,697.46,696.43,1.07227985]
[1736931856367,1.014,697.46,696.44,1.07227985]
[1736931857469,1.014,697.46,696.47,1.07227985]
[1736931859073,1.014,697.46,696.45,1.07227985]
[1736931860973,1.014,697.46,696.44,1.07227985]
[1736931862073,1.014,697.46,696.43,1.07227985]
[1736931863073,1.014,697.46,696.45,1.07227985]
[1736931864469,1.014,697.46,696.47,1.07227985]
[1736931865573,1.014,697.46,696.46,1.07227985]
[1736931866576,1.014,697.46,696.48,1.07227985]
[1736931867779,1.014,697.46,696.49,1.07227985]
[1736931868781,1.014,697.46,696.44,1.07227985]
[1736931869581,1.014,697.46,696.43,1.07227985]
[1736931871683,1.014,697.46,696.41,1.07227985]
[1736931872080,1.014,697.46,696.42,0.28718302]
[1736931912606,1.04305546,697.38,696.42,0.28718302]
[1736931913409,1.04305546,697.36,696.42,0.28718302]
[1736931914109,2.14105546,697.36,696.42,0.28718302]
[1736931915811,1.098,697.36,696.42,0.28718302]
[1736931951836,1.098,697.36,695.9,1.07227985]
[1736931952139,1.098,697.36,695.95,1.07227985]
[1736931952338,1.098,697.36,695.96,0.28737283]
[1736931953141,1.098,697.36,696.0,1.07227985]
[1736931953142,1.04305546,697.34,696.0,1.07227985]
[1736931953540,1.04305546,697.34,696.01,0.28735219]
[1736931953942,1.04305546,697.33,696.01,0.28735219]
[1736931954443,2.12305546,697.33,696.01,0.28735219]
[1736931955645,1.08,697.33,696.01,0.28735219]
[1736931956444,1.08,697.33,696.01,1.35963204]
[1736931957436,1.08,697.33,696.01,0.28735219]
[1736931972851,1.08,697.33,696.12,1.07227985]
[1736931974356,1.08,697.33,696.13,1.07227985]
[1736931974949,1.08,697.33,696.14,0.28729853]
[1736931995965,1.08,697.33,696.16,1.07227985]
[1736931997460,1.08,697.33,696.14,1.35957838]
[1736931997866,1.08,697.33,696.15,0.2872944]
[1736931999065,1.08,697.33,696.16,4.46213784]
[1736931999264,1.08,697.33,696.17,1.95311244]
[1736931999469,1.08,697.33,696.17,0.28728615]
[1736932000273,1.08,697.33,696.18,1.07227985]
[1736932000475,1.08,697.33,696.19,0.28727789]
[1736932000771,1.08,697.33,696.2,1.66564613]
[1736932000970,1.08,697.33,696.21,3.08324306]
[1736932001182,1.08,697.33,696.22,1.95291164]
[1736932001373,1.08,697.33,696.23,1.95290752]
[1736932001566,1.08,697.33,696.24,0.28725726]
[1736932002267,1.08,697.33,696.24,1.35953711]
[1736932003174,1.08,697.33,696.24,0.28725726]
[1736932035598,2.12,697.33,696.24,0.28725726]
[1736932053710,1.04305546,697.32,696.24,0.28725726]
[1736932054403,1.04,697.33,696.24,0.28725726]
[1736932055106,2.108,697.33,696.24,0.28725726]
[1736932068518,2.39480825,697.33,695.73,1.07227985]
[1736932068715,2.39480825,697.33,695.74,0.2874637]
[1736932071119,0.28681236,697.32,695.74,0.2874637]
[1736932072616,1.11581236,697.32,695.74,0.2874637]
[1736932077821,0.26374971,697.31,695.74,0.2874637]
[1736932078415,0.26375453,697.3,695.74,0.2874637]
[1736932078626,1.11581236,697.32,695.74,0.2874637]
[1736932078627,0.26375453,697.29,695.74,0.2874637]
[1736932078822,1.11581236,697.32,695.74,0.2874637]
[1736932079020,0.26375521,697.31,695.74,0.2874637]
[1736932080624,1.30681067,697.31,695.74,0.2874637]
[1736932080923,0.26375311,697.3,695.74,0.2874637]
[1736932081321,0.26375311,697.3,695.75,1.66369675]
[1736932081925,0.26375311,697.3,695.76,2.7922945]
[1736932082117,1.04305546,697.28,695.78,1.07227985]
[1736932082421,0.26375311,697.27,695.79,0.28744305]
[1736932083220,1.04305546,697.25,695.84,1.07227985]
[1736932083524,0.26374752,697.24,695.84,1.07227985]
[1736932083723,0.26374752,697.24,695.85,0.28741826]
[1736932083923,1.30680298,697.24,695.85,1.35969811]
[1736932084119,1.04305546,697.24,695.85,1.35969811]
[1736932085623,1.04305546,697.23,695.87,1.07227985]
[1736932085825,1.04305546,697.23,695.88,0.28740587]
[1736932086725,1.04305546,697.21,695.88,1.35968572]
[1736932087626,1.11581236,697.32,695.89,1.07227985]
[1736932087627,1.04305546,697.18,695.89,1.07227985]
[1736932087827,1.04305546,697.18,695.9,0.28739761]
[1736932088421,1.04305546,697.14,695.9,0.28739761]
[1736932089230,1.04305546,697.14,695.91,1.07227985]
[1736932090230,1.04305546,697.13,695.91,1.07227985]
[1736932091331,1.04305546,697.14,695.9,1.35967746]
[1736932092031,1.77805546,697.14,695.9,1.35967746]
[1736932092431,1.04305546,697.1,695.93,1.07227985]
[1736932093329,1.04305546,697.09,695.93,1.07227985]
[1736932094326,1.04305546,697.08,695.93,1.07227985]
[1736932095533,1.04305546,697.11,695.91,1.07227985]
[1736932096727,1.04305546,697.1,695.9,0.28739761]
[1736932098434,2.13305546,697.11,695.91,1.07227985]
[1736932099435,1.04305546,697.1,695.91,1.07227985]
[1736932100433,1.09,697.11,695.9,0.28739761]
[1736932100434,1.04305546,697.09,695.95,1.07227985]
[1736932101434,1.04305546,697.09,695.94,1.07227985]
[1736932101740,1.04305546,697.09,695.95,0.28737696]
[1736932102238,1.09,697.11,695.95,0.28737696]
[1736932107940,1.04305546,697.1,695.95,0.28737696]
[1736932108644,1.09,697.11,695.95,0.28737696]
[1736932118855,1.04305546,697.09,695.98,1.07227985]
[1736932119552,0.28681236,697.32,695.95,0.28737696]
[1736932119553,1.04305546,697.07,696.03,1.07227985]
[1736932120354,1.98305546,697.07,696.03,1.07227985]
[1736932121558,1.04305546,697.06,696.03,1.07227985]
[1736932122548,1.98305546,697.07,696.03,1.07227985]
[1736932124558,1.98305546,697.07,696.04,1.07227985]
[1736932124559,0.94,697.07,696.04,1.07227985]
[1736932125556,0.94,697.07,695.95,0.28737696]
[1736932138066,1.818,697.07,695.95,0.28737696]
[1736932139669,1.818,697.07,695.99,1.07227985]
[1736932139865,1.818,697.07,696.0,0.28735632]
[1736932150984,1.818,697.07,696.01,2.52534186]
[1736932151187,1.818,697.07,696.02,2.81268992]
[1736932151381,1.818,697.07,696.03,2.52534186]
[1736932151584,1.818,697.07,696.04,1.66444469]
[1736932151786,1.818,697.07,696.05,1.66444469]
[1736932151985,1.818,697.07,696.06,0.28733155]
[1736932152280,1.818,697.07,696.07,1.66444469]
[1736932152481,1.818,697.07,696.08,0.28732329]
[1736932157385,1.818,697.07,696.09,4.45530743]
[1736932157585,1.818,697.07,696.09,2.79201217]
[1736932157982,1.818,697.07,696.1,0.28731504]
[1736932161290,1.818,697.07,696.11,2.79140005]
[1736932161491,1.818,697.07,696.12,0.28730678]
[1736932162789,1.818,697.07,696.13,2.79140005]
[1736932162986,1.818,697.07,696.14,0.28729853]
[1736932165787,1.818,697.07,696.15,1.66248931]
[1736932165988,1.818,697.07,696.16,2.79068255]
[1736932166193,1.818,697.07,696.17,1.66248559]
[1736932166390,1.818,697.07,696.18,0.28728202]
[1736932167395,1.818,697.07,696.2,1.07227985]
[1736932168089,1.818,697.07,696.21,0.28726964]
[1736932170697,0.37700001,697.07,696.21,0.28726964]
[1736932171498,0.37700001,697.07,696.25,1.07227985]
[1736932171699,0.37700001,697.07,696.27,0.28724489]
[1736932171997,0.71600001,697.07,696.27,0.28724489]
[1736932172198,1.04305546,697.79,696.27,0.28724489]
[1736932173094,1.04305546,697.8,696.27,0.28724489]
[1736932173401,1.83805546,697.8,696.27,0.28724489]
[1736932174095,0.795,697.8,696.27,0.28724489]
[1736932177000,0.26356327,697.79,696.27,0.28724489]
[1736932177600,0.26356641,697.78,696.27,0.28724489]
[1736932177800,0.26356641,697.77,696.27,0.28724489]
[1736932178000,0.26356641,697.76,696.27,1.35952474]
[1736932178199,0.26356433,697.75,696.27,1.35952474]
[1736932178404,0.26356433,697.74,696.27,1.35952474]
[1736932178603,0.26356543,697.73,696.27,1.35952474]
[1736932178803,0.26356543,697.72,696.27,1.35952474]
[1736932179005,0.795,697.8,696.27,0.28724489]
[1736932179203,0.26356782,697.79,696.27,0.28724489]
[1736932179603,0.26357164,697.78,696.27,0.28724489]
[1736932179804,0.26357164,697.77,696.27,0.28724489]
[1736932180106,0.26357164,697.76,696.27,0.28724489]
[1736932180309,0.26357164,697.75,696.27,0.28724489]
[1736932180601,0.26357164,697.74,696.27,0.28724489]
[1736932180802,0.26357164,697.73,696.27,0.28724489]
[1736932181002,0.26357164,697.72,696.27,0.28724489]
[1736932181206,0.795,697.8,696.27,0.28724489]
[1736932181207,0.26357164,697.71,696.27,0.28724489]
[1736932181404,0.26357164,697.7,696.27,0.28724489]
[1736932181601,0.26357164,697.69,696.27,0.28724489]
[1736932181808,0.795,697.8,696.27,0.28724489]
[1736932182109,1.04305546,697.79,696.27,0.28724489]
[1736932183206,1.83805546,697.8,696.27,0.28724489]
[1736932184307,0.795,697.8,696.27,0.28724489]
[1736932194207,0.28661918,697.79,696.27,0.28724489]
[1736932195816,1.04305546,697.71,696.27,0.28724489]
[1736932196810,1.04305546,697.56,696.27,0.28724489]
[1736932197919,1.04305546,697.55,696.27,0.28724489]
[1736932198819,1.04305546,697.56,696.27,0.28724489]
[1736932199820,1.04305546,697.58,696.27,0.28724489]
[1736932202222,1.04305546,697.61,696.27,0.28724489]
[1736932203317,0.28661918,697.79,696.27,0.28724489]
[1736932203318,1.04305546,697.62,696.27,0.28724489]
[1736932204422,1.04305546,697.67,696.27,0.28724489]
[1736932204818,0.28667259,697.66,696.27,0.28724489]
[1736932205625,1.32972805,697.66,696.27,0.28724489]
[1736932206324,0.28667259,697.66,696.27,0.28724489]
[1736932208725,1.13167259,697.66,696.27,0.28724489]
[1736932223047,2.17472805,697.66,696.27,0.28724489]
[1736932224044,1.04305546,697.62,696.27,0.28724489]
[1736932224947,1.04305546,697.58,696.27,0.28724489]
[1736932226148,1.04305546,697.54,696.27,0.28724489]
[1736932227441,1.04305546,697.47,696.27,0.28724489]
[1736932228542,1.04305546,697.43,696.27,0.28724489]
[1736932228848,2.26805546,697.43,696.27,0.28724489]
[1736932229350,1.04305546,697.41,696.27,0.28724489]
[1736932230443,1.04305546,697.4,696.27,0.28724489]
[1736932231644,1.04305546,697.41,696.27,0.28724489]
[1736932232445,1.225,697.43,696.27,0.28724489]
[1736932233648,2.26805546,697.43,696.27,0.28724489]
[1736932234352,1.04305546,697.39,696.27,0.28724489]
[1736932235352,1.225,697.43,696.27,0.28724489]
[1736932235353,1.04305546,697.38,696.27,0.28724489]
[1736932236351,1.04305546,697.39,696.27,0.28724489]
[1736932237450,1.04305546,697.38,696.27,0.28724489]
[1736932238658,1.04305546,697.41,696.27,0.28724489]
[1736932239755,1.04305546,697.4,696.27,0.28724489]
[1736932240854,2.26805546,697.43,696.27,0.28724489]
[1736932242162,1.04305546,697.41,696.27,0.28724489]
[1736932243059,1.04305546,697.4,696.27,0.28724489]
[1736932245256,1.225,697.43,696.27,0.28724489]
[1736932252060,1.225,697.43,696.28,1.07227985]
[1736932252565,1.225,697.43,696.29,0.28723663]
[1736932258764,0.26367609,697.42,696.29,0.28723663]
[1736932258967,1.04305546,697.49,696.29,0.28723663]
[1736932259165,1.04305546,697.39,696.29,0.28723663]
[1736932259968,1.04305546,697.42,696.29,0.28723663]
[1736932260169,2.33005546,697.42,696.29,0.28723663]
[1736932260961,1.287,697.42,696.29,0.28723663]
[1736932289385,1.287,697.42,696.29,1.35951648]
[1736932290394,1.287,697.42,696.29,0.28723663]
[1736932293999,1.287,697.42,696.29,1.35951648]
[1736932294901,1.287,697.42,696.3,1.07227985]
[1736932295099,1.287,697.42,696.31,0.28722838]
[1736932298505,1.287,697.42,696.32,1.07227985]
[1736932298706,1.287,697.42,696.33,0.28722013]
[1736932299603,1.287,697.42,696.33,1.35949998]
[1736932300408,1.287,697.42,696.35,1.07227985]
[1736932300608,1.287,697.42,696.36,0.28720776]
[1736932301610,1.287,697.42,696.36,1.35948761]
[1736932302607,1.287,697.42,696.39,1.07227985]
[1736932302812,1.287,697.42,696.4,0.28719126]
[1736932305207,1.287,697.42,696.41,1.07227985]
[1736932305406,1.287,697.42,696.41,1.35946699]
[1736932306006,1.287,697.42,696.41,0.28718714]
[1736932313312,1.287,697.42,696.45,1.07227985]
[1736932315621,1.287,697.42,696.44,1.07227985]
[1736932315818,1.287,697.42,696.45,0.28717065]
[1736932326426,1.287,697.42,696.51,1.07227985]
[1736932328329,1.287,697.42,696.5,1.07227985]
[1736932329425,1.287,697.42,696.56,1.07227985]
[1736932330332,1.287,697.42,696.57,1.07227985]
[1736932332231,1.287,697.42,696.56,1.07227985]
[1736932332932,1.287,697.42,696.57,1.07227985]
[1736932334533,1.287,697.42,696.52,1.07227985]
[1736932335629,1.287,697.42,696.51,1.07227985]
[1736932336536,1.287,697.42,696.52,1.07227985]
[1736932337134,1.287,697.42,696.45,0.28717065]
[1736932337135,1.287,697.42,696.53,1.07227985]
[1736932338238,1.287,697.42,696.55,1.07227985]
[1736932340041,1.287,697.42,696.53,1.07227985]
[1736932341240,1.287,697.42,696.56,1.07227985]
[1736932342245,1.287,697.42,696.55,1.07227985]
[1736932343445,1.287,697.42,696.45,0.28717065]
[1736932361359,1.287,697.42,696.46,1.66897186]
[1736932361560,1.287,697.42,696.47,0.2871624]
[1736932362458,1.287,697.42,696.5,1.07227985]
[1736932363460,1.287,697.42,696.52,1.07227985]
[1736932364056,1.287,697.42,696.56,1.07227985]
[1736932366465,1.287,697.42,696.51,1.07227985]
[1736932367565,1.287,697.42,696.49,1.07227985]
[1736932368658,1.287,697.42,696.47,0.2871624]
[1736932532089,1.287,697.42,696.48,1.66303697]
[1736932532289,1.287,697.42,696.49,0.28715415]
[1736932532483,1.287,697.42,696.5,1.66303697]
[1736932532887,1.287,697.42,696.51,2.79163689]
[1736932533685,1.287,697.42,696.52,0.28714179]
[1736932536291,1.287,697.42,696.55,1.07227985]
[1736932537390,1.287,697.42,696.3,1.07227985]
[1736932537697,1.287,697.42,696.31,2.79124299]
[1736932538294,1.287,697.42,696.32,1.07227985]
[1736932539292,1.287,697.42,696.33,1.07227985]
[1736932542200,1.287,697.42,696.35,1.07227985]
[1736932542897,1.287,697.42,696.36,1.07227985]
[1736932544001,1.287,697.42,696.37,1.07227985]
[1736932545400,1.287,697.42,695.97,1.07227985]
[1736932546398,1.287,697.42,695.99,1.07227985]
[1736932547398,1.287,697.42,696.0,1.07227985]
[1736932548202,1.287,697.42,696.01,1.07227985]
[1736932550404,1.287,697.42,696.03,1.07227985]
[1736932551504,1.287,697.42,695.77,1.26072119]
[1736932551505,1.287,697.42,696.15,1.07227985]
[1736932551999,1.287,697.42,696.14,1.07227985]
[1736932553399,1.287,697.42,696.15,1.66345286]
[1736932553801,1.287,697.42,696.16,2.79252293]
[1736932554005,1.287,697.42,696.32,1.07227985]
[1736932555103,1.287,697.42,696.31,1.07227985]
[1736932556004,1.287,697.42,696.32,1.07227985]
[1736932557704,1.287,697.42,696.31,1.07227985]
[1736932558505,1.287,697.42,696.32,1.07227985]
[1736932559606,1.287,697.42,696.23,1.07227985]
[1736932560909,1.287,697.42,696.3,1.07227985]
[1736932562107,1.287,697.42,696.32,1.07227985]
[1736932563007,1.287,697.42,696.31,1.07227985]
[1736932564205,1.287,697.42,695.57,2.14497702]
[1736932564206,1.287,697.42,696.35,1.07227985]
[1736932564906,1.287,697.42,696.37,1.07227985]
[1736932565714,1.287,697.42,696.39,1.07227985]
[1736932566914,1.287,697.42,696.4,1.07227985]
[1736932568009,1.287,697.42,696.46,1.07227985]
[1736932579824,1.287,697.42,696.54,1.07227985]
[1736932580020,1.287,697.42,696.55,0.28712942]
[1736932589727,1.287,697.42,696.58,1.07227985]
[1736932590728,1.287,697.42,696.57,1.07227985]
[1736932591838,1.287,697.42,696.55,1.35940927]
[1736932592936,1.287,697.42,696.55,0.28712942]
[1736932653377,2.33005546,697.42,696.55,0.28712942]
[1736932654777,1.04305546,697.36,696.55,0.28712942]
[1736932656277,1.98005546,697.36,696.55,0.28712942]
[1736932658979,1.04305546,697.35,696.55,0.28712942]
[1736932660082,1.98005546,697.36,696.55,0.28712942]
[1736932661185,0.937,697.36,696.55,0.28712942]
[1736932663883,1.98005546,697.36,696.55,0.28712942]
[1736932666881,0.937,697.36,696.55,0.28712942]
[1736932695217,1.98005546,697.36,696.55,0.28712942]
[1736932696913,0.937,697.36,696.55,0.28712942]
[1736932697812,1.98005546,697.36,696.55,0.28712942]
[1736932699717,0.937,697.36,696.55,0.28712942]
[1736932701916,0.937,697.36,696.3,1.07227985]
[1736932702720,0.937,697.36,696.05,1.07227985]
[1736932702919,0.937,697.36,696.06,0.28733155]
[1736932716527,0.26371535,697.35,696.06,0.28733155]
[1736932717026,0.26371535,697.34,696.06,0.28733155]
[1736932717227,0.26371535,697.33,696.06,0.28733155]
[1736932717525,1.04305546,697.47,696.06,0.28733155]
[1736932717526,0.26371725,697.32,696.06,0.28733155]
[1736932717725,1.04305546,697.47,696.06,0.28733155]
[1736932717927,1.085,697.32,696.06,0.28733155]
[1736932736932,1.04305546,697.23,696.06,0.28733155]